Cogmind - Beta 11 X11 @@@ ROGUE MODE // 2022.03.03 @ 09:58:52 Player: youngster Result: Destroyed by Executioner with Helical Railgun Performance ------------- Evolutions (9) 4500 Regions Visited (31) 6200 Robots Destroyed (523) 2615 Value Destroyed (27465) 27465 Prototype IDs (85) 1700 Alien Tech Used (9) 1800 Bonus (20156) 20156 TOTAL SCORE: 64436 Bonus ------- Triggered High Security 500 High Alert Combat Kills 7236 Follower Combat Kills 652 Network Hubs Disabled 200 Met Data Miner 300 Met Zhirov 300 Met Warlord at Base 500 MAIN.C Attacked Warlord 500 Warlord Defense Kill 896 Met R17 at Cetus 500 Used Core Reset Matrix 3000 Met R17 at Research 2000 Met Warlord at Research 2000 Scanned by Researcher 500 Acquired SGEMP 2000 Friendly Fire -928 Cogmind --------- Core Integrity 0/1600 Matter 300/300 Energy 48/100 System Corruption 15% Temperature Cool (0) Movement Core (1350) Ox26 Location -1/Access Parts ------- > --- POWER (2) -------- (None) > --- PROPULSION (8) --- (None) > --- UTILITY (11) ----- Huge Storage Unit Spectral Analyzer Advanced Signal Interpreter Advanced Target Analyzer Spacefold Activator > --- WEAPON (4) ------- (None) > --- INVENTORY (25) --- Reinforced Quantum Reactor Experimental Cooling System Experimental Energy Well (600) Advanced Matter Compressor (400) Advanced Sensor Array Advanced Melee Analysis Suite Quantum Capacitor Antimissile System Long-range Tractor Beam Subatomic Replicator Core Stripper Peak State ------------ > --- POWER ------------ Vortex Chain Reactor > --- PROPULSION ------- Advanced Heavy Treads Centrium Heavy Treads Centrium Heavy Treads High-density Centrium Heavy Treads > --- UTILITY ---------- Huge Storage Unit Spectral Analyzer Advanced Signal Interpreter Experimental Targeting Computer Advanced Target Analyzer SHELL Armor Graphene Brace Thermal Barrier Experimental Force Field > --- WEAPON ----------- Helical Railgun Helical Railgun Helical Railgun Multirail > --- INVENTORY -------- Vortex Chain Reactor Advanced Heavy Siege Treads Experimental Cooling System Experimental Energy Well Advanced Matter Compressor Advanced Sensor Array Advanced Kinecellerator Quantum Capacitor Centrium Medium Armor Plating Experimental Focal Shield Experimental EM Disruption Field Antimissile System Long-range Tractor Beam Subatomic Replicator Spacefold Activator Compact HERF Cannon Nova Cannon Tri-rail Accelerator Micro-nuke Launcher Core Stripper [Rating: 239] Favorites ----------- Power Neutrino Core Engine Ion Engine Power Core Neutrino Core Reactor Quantum Reactor Propulsion Light Treads Treads Light Treads Leg Flexi-carbon Leg Wheel Compact Wheel Hover Unit Improved Antigrav System Flight Unit VTOL Module Utility Huge Storage Unit Device Improved Sensor Array Storage Huge Storage Unit Processor Advanced Visual Processing Unit Hackware Improved Hacking Suite Protection Centrium Medium Armor Plating Artifact Spacefold Activator Weapon Coil Gun Energy Gun Arc Thrower Energy Cannon Nova Cannon Ballistic Gun Coil Gun Ballistic Cannon Bore Cannon Launcher Improved Proton Missile Launcher Special Weapon RU-N14's Throwing Claymores v3 Impact Weapon Core Stripper Slashing Weapon Scythe Piercing Weapon Plasma Lance Special Melee Weapon Datajack Build | -11 -10 -10 -10 -9 -8 -7 -7 -7 -7 -6 -6 -6 -6 -6 -6 -5 -5 -5 -5 -4 -4 -4 -4 -4 -3 -3 -3 -2 -2 -2 -1 ------- Run | Scr Mat Min Exi Min Mat Fac Low Low Dat Pro Fac Ext Cet Arc Hub Fac Upp Upp Zhi Pro Fac Upp Upp War Pro Res Qua Res Tes Sec Acc Slots Evolved 18 | . . . . . 4 2 . . . . 2 . . . . 2 . . . . 2 . . . . 2 . 2 . . 2 Power 1 | . . . . . . . . . . . . . . . . . . . . . 1 . . . . . . . . . . Propulsion 6 | . . . . . 1 1 . . . . 1 . . . . . . . . . . . . . . 1 . 2 . . . Utility 9 | . . . . . 1 1 . . . . 1 . . . . 2 . . . . 1 . . . . 1 . . . . 2 Weapon 2 | . . . . . 2 . . . . . . . . . . . . . . . . . . . . . . . . . . Parts Attached 826 | 7 24 2 2 6 34 10 11 8 4 26 11 39 13 12 31 17 10 11 13 23 67 19 29 19 18 23 85 52 88 13 99 Power 46 | 1 . . . . 2 . 1 1 . 1 . 1 2 . 1 . 1 . 3 2 3 1 . 1 . 3 3 4 3 2 10 Engine 4 | 1 . . . . 1 . 1 . . 1 . . . . . . . . . . . . . . . . . . . . . Core 10 | . . . . . 1 . . 1 . . . . . . . . 1 . 1 1 3 1 . . . 1 . . . . . Reactor 32 | . . . . . . . . . . . . 1 2 . 1 . . . 2 1 . . . 1 . 2 3 4 3 2 10 Propulsion 101 | 2 6 . . 1 4 3 4 1 . 4 2 6 4 . 3 1 . . 2 . 3 1 1 2 1 2 20 14 7 3 4 Treads 70 | 2 3 . . 1 4 1 2 1 . 1 . 5 4 . 3 1 . . 2 . 3 1 1 2 1 2 8 8 7 3 4 Leg 11 | . . . . . . . . . . 2 . . . . . . . . . . . . . . . . 4 5 . . . Wheel 10 | . 3 . . . . 2 2 . . 1 . 1 . . . . . . . . . . . . . . . 1 . . . Hover 8 | . . . . . . . . . . . . . . . . . . . . . . . . . . . 8 . . . . Flight 2 | . . . . . . . . . . . 2 . . . . . . . . . . . . . . . . . . . . Utility 402 | 2 9 1 . 3 16 5 1 . . 12 4 15 2 12 13 7 6 6 4 20 36 12 13 10 8 11 36 15 54 6 63 Device 287 | 1 8 . . 2 6 . . . . 8 2 7 . 10 10 4 5 4 3 12 25 11 10 8 7 7 26 9 39 4 59 Storage 9 | 1 1 1 . . . 1 . . . 1 . 1 . . . . . . . . . . . 1 . . . 1 . . 1 Processor 19 | . . . . . 2 2 . . . . 1 1 . . . . 1 . . 2 . . . 1 . 1 3 3 2 . . Hackware 3 | . . . . . . . . . . . . . . . . . . . . . 1 . . . . 2 . . . . . Protection 82 | . . . . 1 8 2 1 . . 3 1 6 2 2 3 3 . 2 1 6 10 1 3 . 1 1 7 2 13 1 2 Artifact 2 | . . . . . . . . . . . . . . . . . . . . . . . . . . . . . . 1 1 Weapon 277 | 2 9 1 2 2 12 2 5 6 4 9 5 17 5 . 14 9 3 5 4 1 25 5 15 6 9 7 26 19 24 2 22 Energy Gun 14 | 2 7 . . . . . . . . . . . . . . . . . . . 3 . 1 . . . . . 1 . . Energy Cannon 37 | . 1 . 1 1 1 . 1 . . 1 1 2 . . . . . . . . . . . . . . 5 7 8 1 7 Ballistic Gun 124 | . . . . . 6 1 2 3 3 3 2 5 2 . 11 5 2 4 4 . 15 4 6 2 5 3 9 6 12 . 9 Ballistic Cannon 22 | . 1 1 . . 3 1 2 1 1 1 . 2 . . . 1 . . . . . . . . . . 3 3 . . 2 Launcher 35 | . . . . 1 2 . . 2 . 4 . 4 2 . 2 . . . . . 6 . 4 1 . 1 1 1 1 . 3 Special Weapon 8 | . . . . . . . . . . . . . . . . . . . . . . . . 2 3 . 3 . . . . Impact Weapon 4 | . . . . . . . . . . . . . . . . . . . . . . . . . . . . . 2 1 1 Slashing Weapon 22 | . . . . . . . . . . . 2 1 1 . 1 3 1 1 . 1 1 1 4 1 . . 2 2 . . . Piercing Weapon 7 | . . . . . . . . . . . . . . . . . . . . . . . . . 1 3 3 . . . . Special Melee Weapon 4 | . . . 1 . . . . . . . . 3 . . . . . . . . . . . . . . . . . . . Unidentified Prototypes 51 | . 1 . . . 2 . . . . 4 . . 3 . . 1 . . 4 1 . . . 5 2 4 4 7 9 3 1 Corrupted Parts 17 | . . . . 1 . . . . . . . . 5 . 6 1 . . . . . 1 1 1 1 . . . . . . System Corruption 89 | . . . . 1 . . . . . . . . 33 . 39 1 . . . . . 4 2 4 5 . . . . . . Parts Lost 118 | . 3 . . 1 1 . 5 3 . 4 . 9 1 . 6 3 2 . . 1 16 . 2 1 2 1 27 2 2 . 26 Power 13 | . . . . . . . 1 1 . 1 . 1 . . 1 . 1 . . . . . . . 1 . 2 1 . . 3 Propulsion 33 | . . . . 1 . . . 2 . 2 . 2 . . 1 . . . . . 2 . . . 1 1 14 1 . . 6 Utility 24 | . . . . . . . 1 . . . . 1 . . . 1 1 . . 1 2 . 1 . . . 5 . 2 . 9 Weapon 48 | . 3 . . . 1 . 3 . . 1 . 5 1 . 4 2 . . . . 12 . 1 1 . . 6 . . . 8 Highest Loss Streak 20 | . 2 . . 1 1 . 5 1 . 2 . 4 1 . 2 1 2 . . 1 7 . 1 1 2 1 8 2 1 . 20 To Critical Strikes 3 | . . . . . . . . . . . . . 1 . . . . . . . . . . . . . 2 . . . . Average Slot Usage (%) 87 | . 99 100 100 99 99 99 94 95 63 94 97 91 90 84 82 86 85 82 58 87 81 87 88 88 85 87 82 82 79 67 71 Engine 2 | . 14 14 14 14 5 7 6 6 . 5 6 . . . . . . . . . . . . . . . . . . . . Core 2 | . . . . . 3 . . . 7 1 . . . . . . 4 5 2 . 1 10 10 9 5 4 2 . . . . Reactor 2 | . . . . . . . . . . . . 5 6 6 5 5 . . 2 4 4 . . . 1 3 3 6 7 4 6 Treads 16 | . 24 14 14 26 27 27 23 26 23 6 6 13 24 20 19 17 17 17 17 17 14 14 15 15 15 18 9 10 17 16 14 Leg 1 | . . . . . . . . . . 11 13 5 . . . . . . . . . . . . . . 3 12 . . . Wheel 1 | . 3 14 14 1 . 2 6 . . 6 1 5 . . . . . . . . . . . . . . . . . . . Device 9 | . 13 14 14 13 1 . . . . 4 4 6 6 12 7 12 14 15 16 13 9 14 18 13 11 5 8 9 8 3 11 Storage 6 | . 14 14 14 14 9 7 7 7 7 7 6 6 6 6 6 5 5 5 5 5 5 5 5 5 5 4 4 4 4 4 4 Processor 13 | . . . . . 7 14 15 15 15 15 20 16 6 6 6 5 7 11 11 18 20 15 15 18 21 19 18 16 17 17 15 Protection 4 | . . . . . 8 6 7 7 7 2 1 3 12 6 10 13 9 . . . 2 5 2 4 3 4 1 3 6 4 4 Energy Gun 1 | . 20 . . . . . . . . . . . . . . . . . . . . . 4 4 . . . . . . . Energy Cannon 2 | . 4 14 2 13 2 . . . . . . . . . . . . . . . . . . . . . 2 4 2 4 3 Ballistic Gun 13 | . . . . . 24 23 17 22 1 23 21 18 20 26 22 18 17 19 . 22 14 16 11 10 18 14 8 8 14 11 11 Ballistic Cannon 2 | . 2 13 14 14 8 7 6 6 . 5 . 1 . . . . . . . . . . . . . . . 1 . . . Naked Turns . | . . . . . . . . . . . . . . . . . . . . . . . . . . . . . . . . Heaviest Build 199 | 15 33 59 59 59 71 109 109 115 115 115 106 124 135 136 137 143 139 122 131 139 147 142 151 150 149 154 170 170 184 179 199 Greatest Support 340 | 40 40 16 16 40 60 80 80 80 60 56 56 56 190 190 190 187 187 187 187 187 187 182 182 182 182 200 200 297 340 340 320 Greatest Overweight (x) 10 | . 2 3 3 3 1 6 6 6 2 9 1 4 4 . . . . . . . . . . . . 1 10 9 . . . Average Overweight (x) . | . . 2 3 1 . 3 5 1 1 2 1 3 . . . . . . . . . . . . . . 1 . . . . Largest Inventory Capacity 25 | 8 15 20 20 20 20 25 25 25 25 25 25 25 25 25 25 25 25 25 25 25 25 25 25 25 25 25 25 25 25 25 25 Average Capacity 23 | 7 13 19 20 20 20 24 25 25 25 25 25 25 25 25 25 25 25 25 25 25 25 25 25 25 25 25 25 25 25 25 25 Most Carried 25 | 4 15 20 20 20 20 25 24 25 25 25 25 25 25 25 25 25 25 25 25 25 25 25 25 25 25 25 25 25 25 25 25 Average Carried 22 | 2 13 18 20 19 19 21 22 23 24 24 24 23 24 24 24 23 24 25 24 24 24 22 24 24 23 24 23 24 24 24 23 Final Capacity 25 | 8 15 20 20 20 20 25 25 25 25 25 25 25 25 25 25 25 25 25 25 25 25 25 25 25 25 25 25 25 25 25 25 Final Carried 25 | 4 15 20 20 19 20 24 22 25 25 24 25 23 25 25 25 25 25 25 25 25 21 25 24 25 24 25 24 25 25 25 23 Class Distribution -------------------- 19% | Scavenger-Mutant 18% | Scavenger-Skirmisher 16% | Mutant 14% | Scavenger-Assassin 8% | Scavenger-Tank 7% | Gunner 6% | Scavenger-Gunner 4% | Tank Dominant Class ---------------- Mutant | -10/Materials Mutant | -10/Mines Mutant | -10/Exiles Mutant | -9/Mines Tank | -8/Materials Gunner | -7/Factory Scavenger-Gunner | -7/Lower Caves Gunner | -7/Lower Caves Mutant | -7/Data Miner Gunner | -6/Proximity Caves Scavenger-Mutant | -6/Factory Scavenger-Mutant | -6/Extension Scavenger-Mutant | -6/Cetus Scavenger-Skirmisher | -6/Archives Scavenger-Tank | -6/Hub_04(d) Scavenger-Mutant | -5/Factory Scavenger-Mutant | -5/Upper Caves Scavenger-Assassin | -5/Upper Caves Mutant | -5/Zhirov Scavenger-Skirmisher | -4/Proximity Caves Scavenger-Assassin | -4/Factory Scavenger-Skirmisher | -4/Upper Caves Scavenger-Assassin | -4/Upper Caves Scavenger-Mutant | -4/Warlord Scavenger-Skirmisher | -3/Proximity Caves Scavenger-Assassin | -3/Research Scavenger-Assassin | -3/Quarantine Scavenger-Skirmisher | -2/Research Scavenger-Skirmisher | -2/Testing Mutant | -2/Section 7 Scavenger-Mutant | -1/Access Resources | -11 -10 -10 -10 -9 -8 -7 -7 -7 -7 -6 -6 -6 -6 -6 -6 -5 -5 -5 -5 -4 -4 -4 -4 -4 -3 -3 -3 -2 -2 -2 -1 ----------- Run | Scr Mat Min Exi Min Mat Fac Low Low Dat Pro Fac Ext Cet Arc Hub Fac Upp Upp Zhi Pro Fac Upp Upp War Pro Res Qua Res Tes Sec Acc Matter Collected 22671 | 270 607 20 20 55 1248 164 359 256 . 594 77 1144 329 578 1336 875 247 313 . 859 1753 558 548 340 322 436 1368 832 2758 286 4119 Remotely 8120 | . . . . . 239 . . . . 178 . 110 . 155 452 315 104 108 . 462 1130 74 92 225 . . 293 13 1149 . 3021 Salvage Created 29684 | 175 857 . . 36 1799 216 126 256 . 277 77 1002 619 578 2560 977 157 136 . 624 1921 450 489 208 753 448 2135 671 4828 186 7123 Parts 1467 | 14 42 . . 8 102 13 5 14 . 23 5 39 37 32 122 59 12 8 . 19 159 17 12 5 9 30 120 29 209 3 320 Haulers Intercepted 8 | . 2 . . . 4 . . . . . . . . . . . . . . 1 . . . . . . . . 1 . . Recyclers Shooed 26 | . 2 . . . 1 . . . . . 1 2 . . . 6 . . . . 4 . . . . 1 . . . 2 7 Parts Field Recycled . | . . . . . . . . . . . . . . . . . . . . . . . . . . . . . . . . Retrieved Matter . | . . . . . . . . . . . . . . . . . . . . . . . . . . . . . . . . Parts Self-Destructed 182 | . . . . . . . 5 12 . 14 . . . . . . 10 8 . 19 . 12 7 88 7 . . . . . . Prevented 20 | . . . . . . . . . . . . . . . . . . . . . . . 3 17 . . . . . . . Kills | -11 -10 -10 -10 -9 -8 -7 -7 -7 -7 -6 -6 -6 -6 -6 -6 -5 -5 -5 -5 -4 -4 -4 -4 -4 -3 -3 -3 -2 -2 -2 -1 ------- Run | Scr Mat Min Exi Min Mat Fac Low Low Dat Pro Fac Ext Cet Arc Hub Fac Upp Upp Zhi Pro Fac Upp Upp War Pro Res Qua Res Tes Sec Acc Combat Hostiles Destroyed 411 | . 15 . . 3 28 4 2 10 . 11 3 12 10 4 33 17 6 4 . 6 36 3 4 7 17 3 32 8 45 1 87 Melee 15 | . . . . . . . . . . . . . . . 1 . . . . . 1 . . . . . 12 . . . 1 Guns 246 | . 11 . . . 24 2 2 3 . 4 3 5 . 4 27 15 6 4 . 6 22 3 3 . 3 3 9 3 38 . 46 Cannons 45 | . 3 . . . 1 2 . 1 . . . 5 . . . . . . . . . . . 2 2 . 9 4 1 . 15 AOE 84 | . . . . 3 3 . . 6 . 7 . 2 3 . 2 1 . . . . 13 . 1 5 12 . 1 . 4 . 21 Classes Destroyed 26 | 2 5 . . . 4 1 1 1 . . . . . 1 2 . . . . . 1 . . 1 1 . 1 1 3 . 1 Worker 33 | . 1 . . 1 2 . . . . . . . . . 6 1 . . . . 8 . . . . 1 . . 3 . 10 Builder 34 | . . . . . 2 . . . . . . . . . 5 4 . . . . 8 . . . . 3 . . . . 12 Tunneler 8 | 5 . . . . 1 . . . . . . 1 . . 1 . . . . . . . . . . . . . . . . Hauler 8 | . 2 . . . 4 . . . . . . . . . . . . . . 1 . . . . . . . . 1 . . Recycler 15 | 1 1 . . . 2 . . . . . . 1 . . 2 1 . . . . 1 . . . . 1 . . 2 . 3 Carrier 2 | . . . . . . . . . . . . . . . . . . . . . . . . . . . . . 1 . 1 Mechanic 3 | . . . . . . . . . . . . . . . . . . . . . . . . . 1 . . . . . 2 Operator 10 | . . . . . . . . . . . . . . 9 . . . . . . . . . . . . . . 1 . . Watcher 16 | . 1 . . . 1 . . . . . . . 2 . 3 . . . . . 1 . . . . . 2 . 1 2 3 Swarmer 53 | . 3 . . 3 4 . . 4 . 8 3 . 3 . 3 2 5 3 . . 9 . . . . . 3 . . . . Saboteur 5 | . . . . . . . . . . . . . . . . . . . . . 1 . . . . . . . . . 4 Grunt 147 | . 12 . . . 20 2 . 3 . 1 . 4 . . 14 5 . . . 5 8 . 2 4 9 . 3 . 15 . 40 Brawler 17 | . . . . . 1 . . . . . . . . . 2 . . . . . . . . 1 2 . . . 3 . 8 Duelist 11 | . . . . . . . . 1 . . . . . . 1 . . . . . . . . . 2 . 1 . . . 6 Protector 5 | . . . . . . . . . . . . . . . . . . . . . . . . 2 . . . . 1 . 2 Researcher 2 | . . . . . . . . . . . . . . . . . . . . . . . . . . . . . 2 . . Sentry 30 | . . . . . 2 . 1 1 . . . 4 . 4 4 . 1 . . 1 . 1 . . 1 1 6 . . . 3 Specialist 4 | . . . . . . . . . . . . . . . 4 . . . . . . . . . . . . . . . . Hunter 58 | . . . . . 1 . . . . . . 3 . . 2 2 . 1 . . 8 2 2 . 2 2 2 4 14 . 13 Programmer 54 | . . . . . . 2 . 1 . 2 . . . . 1 8 . . . . 9 . . . . . 16 1 8 . 6 Heavy 5 | . . . . . . . . . . . . . . . 2 . . . . . 1 . . . . . . . . . 2 Q-Series 3 | . . . . . . . . . . . . . . . . . . . . . . . . . . . . . . . 3 Behemoth 3 | . . . . . . . 1 . . . . 1 . . . . . . . . . . . . 1 . . . . . . Cetus Guard 7 | . . . . . . . . . . . . . 7 . . . . . . . . . . . . . . . . . . S7 Guard 1 | . . . . . . . . . . . . . . . . . . . . . . . . . . . . . . 1 . Enhanced Grunt 1 | . . . . . . . . . . 1 . . . . . . . . . . . . . . . . . . . . . Striker 5 | . . . . . . . . . . . . . . . . . . . . . . . . . . . . 3 2 . . Alpha 7 2 | . . . . . . . . . . . . . . . . . . . . . . . . . . . 1 . 1 . . Fortress 1 | . . . . . . . . . . . . . . . . . . . . . . . . . . . . . 1 . . Best Kill Streak 38 | 3 4 . . 3 9 2 1 4 . 4 3 5 5 5 13 10 5 3 . 6 18 2 2 7 6 4 4 4 13 1 38 Combat Bots Only 27 | . 2 . . 3 7 2 1 4 . 4 3 3 4 2 9 6 5 3 . 5 11 2 2 7 6 2 4 4 8 1 27 Max Kills in Single Turn 6 | 1 1 . . 3 2 1 1 4 . 3 1 1 2 1 2 3 2 1 . 2 6 1 1 2 4 2 1 1 2 1 4 Gunslinging 1 | . . . . . . . . . . . . . . . 1 . 1 . . 1 . . . . . . . . . . 1 Exploded 4 | . . . . 3 2 . . 4 . 3 . 1 1 . 1 1 . . . . 4 . 1 2 3 . 1 . 2 . 3 Melee 1 | . . . . . . . . . . . . . . . 1 . . . . . 1 . . . . . 1 . . . 1 Uniques/NPCs Destroyed . | . . . . . . . . . . . . . . . . . . . . . . . . . . . . . . . . Combat | -11 -10 -10 -10 -9 -8 -7 -7 -7 -7 -6 -6 -6 -6 -6 -6 -5 -5 -5 -5 -4 -4 -4 -4 -4 -3 -3 -3 -2 -2 -2 -1 -------- Run | Scr Mat Min Exi Min Mat Fac Low Low Dat Pro Fac Ext Cet Arc Hub Fac Upp Upp Zhi Pro Fac Upp Upp War Pro Res Qua Res Tes Sec Acc Damage Taken 46465 | 32 648 13 . 46 1014 181 946 315 . 601 198 2271 499 459 2574 1854 345 142 . 1135 4612 347 404 497 801 620 5580 1531 3688 . 15112 Core 3692 | . 51 . . 7 87 . 86 . . 66 13 267 14 . 90 136 . . . 52 308 10 14 42 52 78 449 80 169 . 1621 Absorbed by Shields 5539 | . . . . . . . . . . . . . . . . . . . . . 625 276 276 30 306 340 1835 . . . 1851 Reduced by Siege Mode 2304 | . . . . . . . . . . . . . . 30 78 34 15 8 . 55 202 44 . . 25 17 . . 185 . 1611 Redirected to Shielding 48 | . . . . . 18 . . . . . . . . . . . . . . . . . . . . . 30 . . . . Regen/Repaired (Parts) 5719 | . 304 . . . 21 . . . . . . . . . . 1056 . . . . . . . . . 434 613 . 120 . 3171 Core Remaining (%) 73 | 100 . . . 76 84 . . . . 78 . . . . 54 . . . . 81 . . . . 58 . 59 . . 74 . Volleys Fired 1017 | 11 57 . . 1 59 6 13 12 . 27 6 40 18 40 69 44 6 20 . 14 87 14 19 8 20 14 72 29 95 12 204 Largest 4 | 2 2 . . 1 4 4 4 4 . 4 4 4 3 4 4 4 4 4 . 4 4 3 4 3 4 4 4 4 4 4 4 Hottest 283 | 90 112 . . 30 168 128 151 123 . 118 102 140 81 126 138 126 124 129 . 136 185 90 155 93 131 131 213 231 231 238 283 Shots Fired 2813 | 22 111 . . 1 214 24 50 30 . 64 18 119 27 125 206 129 20 28 . 51 247 32 53 13 52 46 142 80 302 16 591 Gun 2338 | 22 90 . . . 161 18 35 21 . 49 16 90 11 125 194 129 20 28 . 51 232 32 48 8 44 46 87 40 275 4 462 Cannon 372 | . 21 . . . 50 6 15 4 . 6 2 24 . . . . . . . . . . . . . . 51 40 26 12 115 Launcher 87 | . . . . 1 3 . . 5 . 9 . 5 16 . 12 . . . . . 15 . 5 1 . . . . 1 . 14 Special 16 | . . . . . . . . . . . . . . . . . . . . . . . . 4 8 . 4 . . . . Kinetic 2348 | . 13 . . . 203 24 48 25 . 55 16 105 11 125 194 129 20 28 . 51 220 32 35 8 44 46 103 52 275 4 482 Thermal 150 | 11 3 . . . . . . . . . . . . . . . . . . . . . . . . . 27 19 21 12 57 Explosive 75 | . . . . 1 3 . . 5 . 9 . 2 3 . . . . . . . 15 . 5 5 8 . 4 . 1 . 14 Electromagnetic 240 | 11 95 . . . 8 . 2 . . . 2 12 13 . 12 . . . . . 12 . 13 . . . 8 9 5 . 38 Robot Hit Streak 60 | 4 8 . . . 25 28 31 8 . 8 4 11 4 15 17 12 13 6 . 34 29 10 8 8 30 13 15 11 16 8 60 Robot Miss Streak 10 | 1 4 . . . 3 . 2 3 . 6 4 5 9 4 5 10 5 5 . 1 4 3 3 1 2 3 3 2 2 1 4 Penetration Max 3 | . . . . . . . . . . . . . . . 1 1 . . . 1 2 . . . . 1 1 2 3 . 2 Secondary Targets 49 | . 1 . . . 2 . . 1 . . . . . . 4 2 2 . . 3 5 . . . . 1 . . 9 . 19 Max Gunslinging Chain 2 | . 1 . . . 1 . . 1 . . . . . . 1 1 1 . . 2 1 . . . . 1 . . 1 . 2 Shots Hit Robots 2060 | 13 69 . 4 . 134 21 42 22 . 38 12 108 7 87 147 102 19 12 . 44 157 26 41 11 41 32 139 52 195 9 476 Core Hits 1294 | 7 33 . . 3 65 8 15 31 . 30 10 44 24 45 118 114 20 9 . 19 106 13 18 17 36 16 60 20 118 1 294 Critical Kills 98 | . . . . . 2 . . . . . . 1 . 5 6 2 2 . . 1 2 . 1 . . 1 2 3 43 2 25 Critical Parts Destroyed 133 | . . . . . 4 . . . . . . . . 4 10 4 . 2 . . 7 . . 1 1 . 3 6 51 1 39 Critical Strikes 272 | 2 3 . . . 6 1 . . . . . 2 . 11 17 6 2 2 . 1 9 . 1 2 3 2 10 15 101 3 73 Burn 1 | 1 . . . . . . . . . . . . . . . . . . . . . . . . . . . . . . . Meltdown 4 | . . . . . . . . . . . . . . . . . . . . . . . . . . . . 1 . 1 2 Destroy 243 | . . . . . 6 . . . . . . 1 . 11 17 6 2 2 . 1 9 . 1 1 1 2 5 10 100 2 66 Blast 8 | . . . . . . 1 . . . . . 1 . . . . . . . . . . . . . . 1 1 . . 4 Corrupt 9 | 1 3 . . . . . . . . . . . . . . . . . . . . . . . . . . 3 1 . 1 Sever 5 | . . . . . . . . . . . . . . . . . . . . . . . . 1 2 . 2 . . . . Impale 2 | . . . . . . . . . . . . . . . . . . . . . . . . . . . 2 . . . . Melee Attacks 161 | . . . 4 . . . . . . . 1 20 . . 1 7 2 1 . 1 5 4 11 4 1 18 76 . 3 1 1 Kinetic 5 | . . . . . . . . . . . . . . . . . . . . . . . . . . . . . 3 1 1 Impact . | . . . . . . . . . . . . . . . . . . . . . . . . . . . . . . . . Slashing 95 | . . . . . . . . . . . 1 . . . 1 7 2 1 . 1 5 4 11 4 . . 58 . . . . Piercing 37 | . . . . . . . . . . . . . . . . . . . . . . . . . 1 18 18 . . . . Sneak Attacks 29 | . . . 4 . . . . . . . . 20 . . . 1 . . . . . . . . . 2 1 . . 1 . Combat Hostiles 2 | . . . . . . . . . . . . 1 . . . . . . . . . . . . . . . . . 1 . Follow-up Attacks . | . . . . . . . . . . . . . . . . . . . . . . . . . . . . . . . . Damage Inflicted 76470 | 200 1138 . . 143 3076 477 813 803 . 1563 182 1971 1603 2179 5552 2649 391 200 . 1239 7801 729 1438 1798 3555 1058 7520 1711 4107 299 22275 Guns 39420 | 166 864 . . . 2362 380 558 311 . 531 164 1010 41 2174 3877 2262 391 200 . 1149 3987 355 473 169 664 846 1794 556 2521 52 11563 Cannons 9423 | . 199 . . . 360 97 255 63 . 96 18 496 . . . . . . . . . . . . . . 1536 1155 485 235 4428 Explosions 21520 | 34 53 . . 125 343 . . 429 . 936 . 457 1562 . 1466 273 . . . . 3775 . 401 1431 2526 . 357 . 1068 . 6284 Melee 4970 | . . . . . . . . . . . . . . . 30 96 . . . 90 . 374 564 . . 191 3592 . 33 . . Ramming 345 | . 22 . . 18 11 . . . . . . 8 . 5 179 18 . . . . 39 . . . . 21 12 . . 12 . Kinetic 41996 | . 67 . . . 2603 477 776 374 . 627 164 1297 41 2174 3877 2262 391 200 . 1149 3844 355 358 169 664 846 2535 958 2554 52 13182 Thermal 4433 | 145 69 . . . 29 . . . . . . 117 178 . . . . . . . . . . . . . 554 492 310 235 2304 Explosive 17364 | . . . . 125 314 . . 429 . 936 . 70 364 . . . . . . . 3775 . 401 1431 2526 . 357 . 1068 . 5568 Electromagnetic 6603 | 55 980 . . . 119 . 37 . . . 18 479 1020 . 1466 273 . . . . 143 . 115 . . . 241 261 175 . 1221 Impact . | . . . . . . . . . . . . . . . . . . . . . . . . . . . . . . . . Slashing 4867 | . . . . . . . . . . . . . . . 30 96 . . . 90 . 374 564 198 365 . 3150 . . . . Piercing 862 | . . . . . . . . . . . . . . . . . . . . . . . . . . 191 671 . . . . Highest Corruption 47 | . . . . 1 . 3 3 3 3 4 . 1 34 34 44 9 9 9 9 9 6 10 12 16 5 . 47 3 7 7 15 Average Corruption 9 | . . . . 1 . 1 3 3 3 3 . 1 15 21 13 6 9 9 9 9 2 8 11 12 5 . 38 1 5 7 4 Corruption Purged 32 | . . . . . . . . . . . . . . 32 . . . . . . . . . . . . . . . . . Corruption Blocked 32 | . . . . . . . . . . . . . . . . . . . . . . . . . . . 11 21 . . . Effects 469 | . . . . . . 4 16 10 1 23 . . 15 32 37 23 12 33 9 25 10 21 37 1 . . 63 15 53 4 25 Message Errors 108 | . . . . . . . 2 1 1 2 . . 3 7 7 6 3 8 3 4 3 5 10 1 . . 20 4 15 . 3 Matter Fused 107 | . . . . . . 2 6 1 . 5 . . 2 7 6 7 2 7 2 6 3 5 14 . . . 14 3 11 1 3 Heat Flow Errors 53 | . . . . . . . 2 1 . 2 . . 5 . 6 1 2 5 . 3 1 2 2 . . . 7 4 6 . 4 Energy Discharges 55 | . . . . . . 1 3 4 . 4 . . . 4 4 4 2 2 3 5 . 2 5 . . . 5 . 2 1 4 Parts Rejected 6 | . . . . . . . . . . . . . 1 . . . . . . . . . . . . . 2 . 1 . 2 Data Loss (minor) 50 | . . . . . . 1 . 2 . 2 . . 1 3 2 4 2 5 1 3 1 2 4 . . . 7 2 4 1 3 Data Loss (major) 20 | . . . . . . . . . . 3 . . . 1 1 . 1 4 . 1 1 . . . . . 2 1 3 . 2 Misfires 23 | . . . . . . . . . . 1 . . 3 1 1 . . . . 2 . 3 1 . . . 2 . 7 . 2 Alerts 10 | . . . . . . . 2 1 . 1 . . . 1 . . . 2 . . . 1 . . . . 1 . . 1 . Misdirections 3 | . . . . . . . . . . . . . . . 2 . . . . . . . . . . . 1 . . . . Weapon Failures 34 | . . . . . . . 1 . . 3 . . . 8 8 1 . . . 1 1 1 1 . . . 2 1 4 . 2 Overload Shots . | . . . . . . . . . . . . . . . . . . . . . . . . . . . . . . . . Overflow Damage 1952 | . . . . 23 34 . . . . 57 . 16 38 . 117 66 . . . . 293 189 237 80 43 25 236 157 12 17 312 Projectiles 341 | . . . . . 9 . . . . . . . . . . . . . . . . . . 39 . . 25 157 1 17 93 Explosions 875 | . . . . 23 25 . . . . 57 . 16 38 . 87 . . . . . 287 . . 41 43 . 28 . 11 . 219 Melee 736 | . . . . . . . . . . . . . . . 30 66 . . . . 6 189 237 . . 25 183 . . . . Knockbacks 41 | . . . . . 3 1 . . . 4 . . . . 2 . . . . . 2 . . . . . 6 7 . . 16 Impact 4 | . . . . . . . . . . . . . . . 2 . . . . . 2 . . . . . . . . . . Kinetic 32 | . . . . . 2 1 . . . 4 . . . . . . . . . . . . . . . . 6 6 . . 13 Secondary 5 | . . . . . 1 . . . . . . . . . . . . . . . . . . . . . . 1 . . 3 Self-Inflicted Damage 795 | 33 13 . . 19 . . . . . 56 . . . . 98 21 . . . . 55 . . . . . . . 83 . 417 Shots 15 | 1 1 . . 1 . . . . . 2 . . . . 1 1 . . . . 1 . . . . . . . 1 . 6 Rammed 35 | . 7 . . 2 3 . . . . . . 1 . 1 11 2 . . . . 3 . . . . 2 2 . . 1 . Targets Rammed 35 | . 7 . . 2 3 . . . . . . 1 . 1 11 2 . . . . 3 . . . . 2 2 . . 1 . Kicked . | . . . . . . . . . . . . . . . . . . . . . . . . . . . . . . . . Crushed . | . . . . . . . . . . . . . . . . . . . . . . . . . . . . . . . . Highest Temperature 417 | 154 201 . . . 417 90 276 262 . 137 15 248 255 332 374 98 243 236 . 244 117 209 147 . 3 . 233 293 259 90 178 Average Temperature 83 | 52 45 . . . 119 42 96 70 . 51 10 103 71 113 82 23 120 108 . 80 38 108 49 . 2 . 62 100 66 20 92 Received Heat Transfer 6284 | . 303 . . . 459 9 114 111 . 90 . 381 18 81 465 144 18 . . 412 41 6 28 50 82 77 329 27 459 . 2580 Effects 18 | . . . . . 8 . . . . . . 3 . 2 2 . . . . . . . . . . . . 3 . . . Shutdowns 3 | . . . . . 1 . . . . . . . . 1 1 . . . . . . . . . . . . . . . . Energy Bleed 2 | . . . . . 2 . . . . . . . . . . . . . . . . . . . . . . . . . . Interference 9 | . . . . . 3 . . . . . . 3 . . . . . . . . . . . . . . . 3 . . . Matter Decay 2 | . . . . . . . . . . . . . . 1 1 . . . . . . . . . . . . . . . . Short Circuit 2 | . . . . . 2 . . . . . . . . . . . . . . . . . . . . . . . . . . Siege Activations 40 | . . . . . . . . . . . . . . 3 2 1 1 2 . 1 3 1 . . 1 1 . . 10 . 14 Total Turns 1318 | . . . . . . . . . . . . . . 83 43 70 11 15 . 38 124 45 . . 19 15 . . 157 . 698 Longest Duration 164 | . . . . . . . . . . . . . . 37 30 70 11 9 . 38 65 45 . . 19 15 . . 29 . 164 Robots Corrupted 15 | . 1 . . . . . . . . . . . 7 . 4 1 . . . . . . . . . . 1 . . . 1 Combat Hostiles 14 | . 1 . . . . . . . . . . . 7 . 3 1 . . . . . . . . . . 1 . . . 1 Parts Fried 38 | . 5 . . . . . . . . . . 4 5 . 11 1 . . . . 2 . 1 . . . 2 4 . . 3 Impact Corruptions 3 | . . . . . . . . . . . . . . . 1 . . . . . 1 . . . . . . 1 . . . Robots Melted 4 | . . . . . . . . . . . . . . . . . . . . . . . . . . . . 1 . 1 2 Combat Hostiles 3 | . . . . . . . . . . . . . . . . . . . . . . . . . . . . 1 . . 2 Parts Melted 11 | 2 . . . . . . . . . . . . . . . . . . . . . . . . . . . . 1 3 5 Heat Transferred 4306 | 457 137 . . . 50 . . . . . . 150 200 . . . . . . . . . . . . . 444 444 259 222 1943 Parts Sabotaged 6 | . . . . . . . . . . . . . . . . . . . . . 4 . . . . . . . . . 2 Parts Stolen . | . . . . . . . . . . . . . . . . . . . . . . . . . . . . . . . . Parts Stripped . | . . . . . . . . . . . . . . . . . . . . . . . . . . . . . . . . Power Chain Reactions 10 | 1 2 . . . 1 . . . . . . 1 1 . 1 . . . . . . . . . . . . . . . 3 Missiles Intercepted . | . . . . . . . . . . . . . . . . . . . . . . . . . . . . . . . . Alert | -11 -10 -10 -10 -9 -8 -7 -7 -7 -7 -6 -6 -6 -6 -6 -6 -5 -5 -5 -5 -4 -4 -4 -4 -4 -3 -3 -3 -2 -2 -2 -1 ------- Run | Scr Mat Min Exi Min Mat Fac Low Low Dat Pro Fac Ext Cet Arc Hub Fac Upp Upp Zhi Pro Fac Upp Upp War Pro Res Qua Res Tes Sec Acc Peak Influence 2748 | 30 230 78 . 100 466 193 . . . . 151 246 458 335 1157 1056 . . . . 941 . . . . 166 223 249 1278 701 2748 Initial 701 | . 19 52 . . 1 100 . . . . 56 73 104 103 46 566 . . . . 2 . . . . 3 2 110 76 701 325 Average 292 | 15 92 54 . 27 175 93 . . . . 130 141 302 237 525 716 . . . . 315 . . . . 44 92 94 538 516 1152 Maximum Alert Level 5 | . 1 . . . 2 . . . . . . 1 2 1 4 3 . . . . 3 . . . . . 1 1 4 3 5 Low Security (%) 63 | 100 98 100 . 100 66 100 . . . . 100 77 11 42 13 . . . . . 52 . . . . 100 92 89 23 . . Level 1 13 | . 1 . . . 29 . . . . . . 22 62 57 34 . . . . . 14 . . . . . 7 10 33 . 8 Level 2 8 | . . . . . 4 . . . . . . . 25 . 20 56 . . . . 13 . . . . . . . 7 81 14 Level 3 8 | . . . . . . . . . . . . . . . 31 43 . . . . 20 . . . . . . . 13 18 32 Level 4 4 | . . . . . . . . . . . . . . . . . . . . . . . . . . . . . 23 . 26 Level 5 . | . . . . . . . . . . . . . . . . . . . . . . . . . . . . . . . . High Security 1 | . . . . . . . . . . . . . . . . . . . . . . . . . . . . . . . 17 Max Security . | . . . . . . . . . . . . . . . . . . . . . . . . . . . . . . . . Squads Dispatched 99 | . 4 . . . 3 3 . . . . . 2 . . 11 7 . . . . 7 . . . 1 7 12 3 16 1 22 Investigation 11 | . 3 . . . 1 1 . . . . . . . . . 1 . . . . . . . . . 3 . . 1 . 1 Extermination 19 | . . . . . . 2 . . . . . . . . 1 1 . . . . 3 . . . . . 7 . 3 . 2 Reinforcement 38 | . 1 . . . 2 . . . . . . 2 . . 7 1 . . . . 3 . . . . 4 2 3 7 . 6 Assault 19 | . . . . . . . . . . . . . . . . 1 . . . . 1 . . . 1 . . . 2 1 13 Garrison 12 | . . . . . . . . . . . . . . . 3 3 . . . . . . . . . . 3 . 3 . . Intercept . | . . . . . . . . . . . . . . . . . . . . . . . . . . . . . . . . Searches Triggered . | . . . . . . . . . . . . . . . . . . . . . . . . . . . . . . . . Data Miner Redirects 4 | . . . . . . . . . . . . . . . . 1 . . . . 1 . . . . . . . . 1 1 Construction Impeded 11 | . . . . . 1 . . . . . . 1 . . 1 1 . . . . 2 . . . . . . . 1 . 4 Haulers Reinforced 5 | . . . . . . . . . . . . . . . 1 . . . . . . . . . . 1 . 2 1 . . Active Scanning Responses . | . . . . . . . . . . . . . . . . . . . . . . . . . . . . . . . . Cargo Convoy Interrupts 1 | . . . . . . . . . . . . . . . . . . . . . 1 . . . . . . . . . . Stealth | -11 -10 -10 -10 -9 -8 -7 -7 -7 -7 -6 -6 -6 -6 -6 -6 -5 -5 -5 -5 -4 -4 -4 -4 -4 -3 -3 -3 -2 -2 -2 -1 --------- Run | Scr Mat Min Exi Min Mat Fac Low Low Dat Pro Fac Ext Cet Arc Hub Fac Upp Upp Zhi Pro Fac Upp Upp War Pro Res Qua Res Tes Sec Acc Distress Signals 39 | . 1 . . . 5 . . . . . . 2 2 1 2 2 . . . . 1 . . . . 4 3 4 7 . 5 Communications Jammed . | . . . . . . . . . . . . . . . . . . . . . . . . . . . . . . . . Distress Signals . | . . . . . . . . . . . . . . . . . . . . . . . . . . . . . . . . Times Spotted 642 | . 31 3 . 3 41 4 2 10 . 11 3 25 17 28 49 26 7 5 . 6 51 3 5 19 16 12 46 21 66 1 131 Peak Tracking Total 20 | . 4 3 . 3 8 2 1 4 . 4 3 7 5 2 9 4 5 4 . 5 12 2 2 10 5 5 8 5 9 1 20 Tactical Retreats 20 | . 1 . . . 2 . . . . . . . 1 . 6 3 . 1 . . 2 . . . . . . . . . 4 Traps | -11 -10 -10 -10 -9 -8 -7 -7 -7 -7 -6 -6 -6 -6 -6 -6 -5 -5 -5 -5 -4 -4 -4 -4 -4 -3 -3 -3 -2 -2 -2 -1 ------- Run | Scr Mat Min Exi Min Mat Fac Low Low Dat Pro Fac Ext Cet Arc Hub Fac Upp Upp Zhi Pro Fac Upp Upp War Pro Res Qua Res Tes Sec Acc Traps Triggered 10 | . 3 . . . . . . . . . . 1 . . 3 1 . . . . . . . . . . . . 1 . 1 Indirectly 3 | . . . . . . . . . . . . . . . 3 . . . . . . . . . . . . . . . . Trap Hack Attempts . | . . . . . . . . . . . . . . . . . . . . . . . . . . . . . . . . Triggered . | . . . . . . . . . . . . . . . . . . . . . . . . . . . . . . . . Disarmed . | . . . . . . . . . . . . . . . . . . . . . . . . . . . . . . . . Reprogrammed . | . . . . . . . . . . . . . . . . . . . . . . . . . . . . . . . . Reused . | . . . . . . . . . . . . . . . . . . . . . . . . . . . . . . . . Traps Extracted . | . . . . . . . . . . . . . . . . . . . . . . . . . . . . . . . . Installed . | . . . . . . . . . . . . . . . . . . . . . . . . . . . . . . . . Triggered 12 | . . . . . . . . . . 2 . . . . . 1 . . . . . . . 8 1 . . . . . . Machines | -11 -10 -10 -10 -9 -8 -7 -7 -7 -7 -6 -6 -6 -6 -6 -6 -5 -5 -5 -5 -4 -4 -4 -4 -4 -3 -3 -3 -2 -2 -2 -1 ---------- Run | Scr Mat Min Exi Min Mat Fac Low Low Dat Pro Fac Ext Cet Arc Hub Fac Upp Upp Zhi Pro Fac Upp Upp War Pro Res Qua Res Tes Sec Acc Machines Disabled 65 | . 2 . . . 3 . . . . . . . . 5 14 5 . . . . . . . . 1 . 8 1 19 4 3 Max in Single Turn 11 | . 1 . . . 1 . . . . . . . . 2 11 3 . . . . . . . . 1 . 1 1 5 1 1 Garrison Access 3 | . . . . . . . . . . . . . . . 1 . . . . . . . . . . 1 1 . . . . Network Hub 1 | . . . . . . . . . . . . . . . 1 . . . . . . . . . . . . . . . . Energy Cycler 1 | . . . . . . . . . . . . 1 . . . . . . . . . . . . . . . . . . . Machines Sabotaged . | . . . . . . . . . . . . . . . . . . . . . . . . . . . . . . . . Garrisons Compromised . | . . . . . . . . . . . . . . . . . . . . . . . . . . . . . . . . Overloaded Fab Kills . | . . . . . . . . . . . . . . . . . . . . . . . . . . . . . . . . Hacking | -11 -10 -10 -10 -9 -8 -7 -7 -7 -7 -6 -6 -6 -6 -6 -6 -5 -5 -5 -5 -4 -4 -4 -4 -4 -3 -3 -3 -2 -2 -2 -1 --------- Run | Scr Mat Min Exi Min Mat Fac Low Low Dat Pro Fac Ext Cet Arc Hub Fac Upp Upp Zhi Pro Fac Upp Upp War Pro Res Qua Res Tes Sec Acc Machines Accessed 85 | . 10 . . . 8 2 . . 4 . 1 5 . . 8 7 . . 5 . 5 1 . 4 . 5 11 1 5 2 1 Terminals 48 | . 7 . . . 5 . . . . . . 5 . . 7 4 . . . . 3 . . . . 3 8 . 3 2 1 Fabricators 1 | . . . . . . 1 . . . . . . . . . . . . . . . . . . . . . . . . . Repair Stations 10 | . 1 . . . 2 1 . . . . 1 . . . . 2 . . . . 1 . . . . 1 1 . . . . Recycling Units 3 | . 2 . . . 1 . . . . . . . . . . . . . . . . . . . . . . . . . . Scanalyzers 4 | . . . . . . . . . . . . . . . . 1 . . . . 1 . . . . . 1 . 1 . . Garrison Access 5 | . . . . . . . . . . . . . . . 1 . . . . . . . . . . 1 1 1 1 . . Total Hacks 278 | . 31 . . . 29 5 . . 33 . 3 16 . . 17 27 . . 18 . 8 1 . 4 . 21 37 1 12 8 7 Successful 156 | . 18 . . . 18 3 . . 33 . 2 9 . . 3 16 . . 18 . 2 1 . 4 . 9 13 . 3 3 1 Failed 122 | . 13 . . . 11 2 . . . . 1 7 . . 14 11 . . . . 6 . . . . 12 24 1 9 5 6 Catastrophic 23 | . 1 . . . 1 1 . . . . . . . . 4 1 . . . . 2 . . . . 2 4 1 3 1 2 Database Lockouts . | . . . . . . . . . . . . . . . . . . . . . . . . . . . . . . . . Manual 105 | . 19 . . . 22 . . . . . . 13 . . 10 11 . . . . 4 . . 1 . 4 11 . 4 6 . Terminals 161 | . 20 . . . 24 . . . . . . 16 . . 14 18 . . . . 6 . . . . 13 27 . 8 8 7 Fabricators 3 | . . . . . . 3 . . . . . . . . . . . . . . . . . . . . . . . . . Repair Stations 38 | . 7 . . . 4 2 . . . . 3 . . . . 8 . . . . 1 . . . . 7 6 . . . . Recycling Units 5 | . 4 . . . 1 . . . . . . . . . . . . . . . . . . . . . . . . . . Scanalyzers 6 | . . . . . . . . . . . . . . . . 1 . . . . 1 . . . . . 2 . 2 . . Garrison Access 9 | . . . . . . . . . . . . . . . 3 . . . . . . . . . . 1 2 1 2 . . Terminal Hacks 95 | . 3 . . . 7 . . . 33 . . 5 . . 2 7 . . 18 . 1 1 . 4 . 3 6 . 2 2 1 Record 22 | . . . . . . . . . 11 . . . . . . . . . 6 . . . . 3 . . 1 . . . 1 Part Schematic 18 | . . . . . 1 . . . 13 . . . . . . . . . 4 . . . . . . . . . . . . Robot Schematic 6 | . . . . . . . . . 6 . . . . . . . . . . . . . . . . . . . . . . Robot Analysis 4 | . . . . . . . . . . . . . . . . . . . 4 . . . . . . . . . . . . Prototype ID Bank 11 | . 2 . . . 1 . . . 3 . . . . . . . . . 4 . . . . . . 1 . . . . . Open Door 3 | . . . . . . . . . . . . . . . . . . . . . . 1 . 1 . . . . 1 . . Branch Access Points 3 | . . . . . . . . . . . . . . . . 1 . . . . 1 . . . . 1 . . . . . Terminal Index 3 | . . . . . . . . . . . . . . . 1 1 . . . . . . . . . . 1 . . . . Repair Station Index 1 | . . . . . . . . . . . . . . . . 1 . . . . . . . . . . . . . . . Garrison Index 1 | . . . . . . . . . . . . . . . 1 . . . . . . . . . . . . . . . . Alert Level 1 | . . . . . 1 . . . . . . . . . . . . . . . . . . . . . . . . . . Unreport Threat 10 | . . . . . 2 . . . . . . 2 . . . 2 . . . . . . . . . . 1 . 1 2 . Locate Traps 9 | . 1 . . . 1 . . . . . . 3 . . . 2 . . . . . . . . . 1 1 . . . . Recall Extermination 1 | . . . . . . . . . . . . . . . . . . . . . . . . . . . 1 . . . . Hauler Manifests 1 | . . . . . 1 . . . . . . . . . . . . . . . . . . . . . . . . . . Registered Components 1 | . . . . . . . . . . . . . . . . . . . . . . . . . . . 1 . . . . Fabricator Hacks 2 | . . . . . . 2 . . . . . . . . . . . . . . . . . . . . . . . . . Load Schematic 1 | . . . . . . 1 . . . . . . . . . . . . . . . . . . . . . . . . . Build 1 | . . . . . . 1 . . . . . . . . . . . . . . . . . . . . . . . . . Repair Station Hacks 24 | . 6 . . . 3 1 . . . . 2 . . . . 5 . . . . . . . . . 4 3 . . . . Scan Component 15 | . 3 . . . 2 1 . . . . 2 . . . . 3 . . . . . . . . . 2 2 . . . . Repair 9 | . 3 . . . 1 . . . . . . . . . . 2 . . . . . . . . . 2 1 . . . . Recycling Unit Hacks . | . . . . . . . . . . . . . . . . . . . . . . . . . . . . . . . . Scanalyzer 2 | . . . . . . . . . . . . . . . . 1 . . . . 1 . . . . . . . . . . Insert Component 2 | . . . . . . . . . . . . . . . . 1 . . . . 1 . . . . . . . . . . Garrison Access Hacks 3 | . . . . . . . . . . . . . . . 1 . . . . . . . . . . 1 1 . . . . Seal Access 3 | . . . . . . . . . . . . . . . 1 . . . . . . . . . . 1 1 . . . . Unauthorized Hacks 30 | . 9 . . . 8 . . . . . . 4 . . . 3 . . . . . . . . . 1 3 . 1 1 . Terminals 25 | . 7 . . . 7 . . . . . . 4 . . . 3 . . . . . . . . . 1 2 . . 1 . Track 7 | . 1 . . . 2 . . . . . . 2 . . . 1 . . . . . . . . . 1 . . . . . Assimilate 2 | . 1 . . . . . . . . . . . . . . 1 . . . . . . . . . . . . . . . Botnet 13 | . 4 . . . 4 . . . . . . 1 . . . 1 . . . . . . . . . . 2 . . 1 . Operators 3 | . 1 . . . 1 . . . . . . 1 . . . . . . . . . . . . . . . . . . . Fabricators . | . . . . . . . . . . . . . . . . . . . . . . . . . . . . . . . . Repair Stations . | . . . . . . . . . . . . . . . . . . . . . . . . . . . . . . . . Recycling Units 3 | . 2 . . . 1 . . . . . . . . . . . . . . . . . . . . . . . . . . Tunnel 3 | . 2 . . . 1 . . . . . . . . . . . . . . . . . . . . . . . . . . Scanalyzers 2 | . . . . . . . . . . . . . . . . . . . . . . . . . . . 1 . 1 . . Researchers 2 | . . . . . . . . . . . . . . . . . . . . . . . . . . . 1 . 1 . . Garrison Access . | . . . . . . . . . . . . . . . . . . . . . . . . . . . . . . . . Data Cores Recovered . | . . . . . . . . . . . . . . . . . . . . . . . . . . . . . . . . Used . | . . . . . . . . . . . . . . . . . . . . . . . . . . . . . . . . Hacking Detections 61 | . 9 . . . 6 2 . . . . 1 5 . . 8 6 . . . . 4 . . . . 4 8 1 4 2 1 Full Trace Events 5 | . 1 . . . . 1 . . . . . . . . . 1 . . . . . . . . . 1 . . . . 1 Feedback Events . | . . . . . . . . . . . . . . . . . . . . . . . . . . . . . . . . Feedback Blocked . | . . . . . . . . . . . . . . . . . . . . . . . . . . . . . . . . Robot Schematics Acquired 7 | . . . . . . . . . 6 . . . . . . . . . . . . . . . . . . . 1 . . Robots Built . | . . . . . . . . . . . . . . . . . . . . . . . . . . . . . . . . Authchips . | . . . . . . . . . . . . . . . . . . . . . . . . . . . . . . . . Time . | . . . . . . . . . . . . . . . . . . . . . . . . . . . . . . . . Total Robot Build Rating . | . . . . . . . . . . . . . . . . . . . . . . . . . . . . . . . . Part Schematics Acquired 20 | . . . . . 1 . . . 13 . . . . . . . . . 4 . . . . . . . . . 2 . . Parts Built 1 | . . . . . . 1 . . . . . . . . . . . . . . . . . . . . . . . . . Authchips . | . . . . . . . . . . . . . . . . . . . . . . . . . . . . . . . . Time 25 | . . . . . . 25 . . . . . . . . . . . . . . . . . . . . . . . . . Total Part Build Rating 1 | . . . . . . 1 . . . . . . . . . . . . . . . . . . . . . . . . . Parts Repaired 9 | . 3 . . . 1 . . . . . . . . . . 2 . . . . . . . . . 2 1 . . . . Time 474 | . 78 . . . 26 . . . . . . . . . . 244 . . . . . . . . . 108 18 . . . . Parts Recycled . | . . . . . . . . . . . . . . . . . . . . . . . . . . . . . . . . Recycled Matter . | . . . . . . . . . . . . . . . . . . . . . . . . . . . . . . . . Retrieved Matter . | . . . . . . . . . . . . . . . . . . . . . . . . . . . . . . . . Retrieved Components . | . . . . . . . . . . . . . . . . . . . . . . . . . . . . . . . . Parts Scanalyzed . | . . . . . . . . . . . . . . . . . . . . . . . . . . . . . . . . Part Schematics Acquired . | . . . . . . . . . . . . . . . . . . . . . . . . . . . . . . . . Parts Damaged . | . . . . . . . . . . . . . . . . . . . . . . . . . . . . . . . . Bothacking | -11 -10 -10 -10 -9 -8 -7 -7 -7 -7 -6 -6 -6 -6 -6 -6 -5 -5 -5 -5 -4 -4 -4 -4 -4 -3 -3 -3 -2 -2 -2 -1 ------------ Run | Scr Mat Min Exi Min Mat Fac Low Low Dat Pro Fac Ext Cet Arc Hub Fac Upp Upp Zhi Pro Fac Upp Upp War Pro Res Qua Res Tes Sec Acc Used RIF Installer . | . . . . . . . . . . . . . . . . . . . . . . . . . . . . . . . . Robots Hacked 4 | . . . 4 . . . . . . . . . . . . . . . . . . . . . . . . . . . . Non-combat 3 | . . . 3 . . . . . . . . . . . . . . . . . . . . . . . . . . . . Combat 1 | . . . 1 . . . . . . . . . . . . . . . . . . . . . . . . . . . . Robot Hacks Applied 4 | . . . 4 . . . . . . . . . . . . . . . . . . . . . . . . . . . . parse_system 4 | . . . 4 . . . . . . . . . . . . . . . . . . . . . . . . . . . . Relay Couplers Released 6 | . . . . . . . . . . . . . . . . . . . . . . . . . . . 3 3 . . . Programmers 6 | . . . . . . . . . . . . . . . . . . . . . . . . . . . 3 3 . . . Fabnet Peak Effective % . | . . . . . . . . . . . . . . . . . . . . . . . . . . . . . . . . Robots Rewired 11 | . . . . . . . . . . . . 10 . . . . . . . . . . . . . . . . 1 . . Allies Hacked . | . . . . . . . . . . . . . . . . . . . . . . . . . . . . . . . . Hacks Repelled . | . . . . . . . . . . . . . . . . . . . . . . . . . . . . . . . . Allies | -11 -10 -10 -10 -9 -8 -7 -7 -7 -7 -6 -6 -6 -6 -6 -6 -5 -5 -5 -5 -4 -4 -4 -4 -4 -3 -3 -3 -2 -2 -2 -1 -------- Run | Scr Mat Min Exi Min Mat Fac Low Low Dat Pro Fac Ext Cet Arc Hub Fac Upp Upp Zhi Pro Fac Upp Upp War Pro Res Qua Res Tes Sec Acc Total Allies 21 | . . 2 . . . . . . . 1 . 10 . . . 1 . . . . . . . . . . . . 1 . 6 Largest Group 6 | . . 2 2 . . . . . . 1 . 6 6 . . 1 . . . . . . . . . . . . 1 . 5 Highest-Rated Group 174 | . . 50 50 . . . . . . 96 . 174 174 . . 10 . . . . . . . . . . . . 163 . 65 Highest-Rated Ally 163 | . . 31 31 . . . . . . 96 . 39 39 . . 10 . . . . . . . . . . . . 163 . 15 Total Orders 17 | . . . . . . . . . . . . 2 1 . . . 3 8 . 1 . . . . . . . . 2 . . STAY 3 | . . . . . . . . . . . . 1 1 . . . . . . . . . . . . . . . 1 . . FOLLOW 1 | . . . . . . . . . . . . 1 . . . . . . . . . . . . . . . . . . . EXPLORE 7 | . . . . . . . . . . . . . . . . . 2 3 . 1 . . . . . . . . 1 . . RETURN 6 | . . . . . . . . . . . . . . . . . 1 5 . . . . . . . . . . . . . Ally Attacks 143 | . . 5 . . . . . . . 4 . 57 59 . . . . . . . . . . . . . . . 11 . 7 Total Damage 3020 | . . 80 . . . . . . . 97 . 1045 1035 . . . . . . . . . . . . . . . 731 . 32 Kills 24 | . . 3 . . . . . . . 2 . 9 6 . . . . . . . . . . . . . . . 4 . . Allies Corrupted . | . . . . . . . . . . . . . . . . . . . . . . . . . . . . . . . . Allies Melted 2 | . . . . . . . . . . . . 1 1 . . . . . . . . . . . . . . . . . . Intel | -11 -10 -10 -10 -9 -8 -7 -7 -7 -7 -6 -6 -6 -6 -6 -6 -5 -5 -5 -5 -4 -4 -4 -4 -4 -3 -3 -3 -2 -2 -2 -1 ------- Run | Scr Mat Min Exi Min Mat Fac Low Low Dat Pro Fac Ext Cet Arc Hub Fac Upp Upp Zhi Pro Fac Upp Upp War Pro Res Qua Res Tes Sec Acc Robot Analysis Total 4 | . . . . . . . . . . . . . . . . . . . 4 . . . . . . . . . . . . Derelict Logs Recovered 12 | . . 1 . 2 . . 2 . . 1 . . . . . . . 2 . 2 . . 2 . . . . . . . . Drone Launches 9 | . . . . . . . . . . . . . . . . . 2 5 . 1 . . . . . . . . 1 . . Drone Recoveries 8 | . . . . . . . . . . . . . . . . . 2 5 . . . . . . . . . . 1 . . Exploration | -11 -10 -10 -10 -9 -8 -7 -7 -7 -7 -6 -6 -6 -6 -6 -6 -5 -5 -5 -5 -4 -4 -4 -4 -4 -3 -3 -3 -2 -2 -2 -1 ------------- Run | Scr Mat Min Exi Min Mat Fac Low Low Dat Pro Fac Ext Cet Arc Hub Fac Upp Upp Zhi Pro Fac Upp Upp War Pro Res Qua Res Tes Sec Acc Turns Passed 30211 | 156 1597 912 483 1043 1495 668 797 623 230 905 342 1092 415 552 890 993 397 880 301 769 1111 558 973 1017 1828 1001 3202 1279 1747 333 1622 Spaces Moved 13452 | 70 888 610 323 458 550 282 380 238 93 391 159 523 211 193 342 449 211 407 163 401 432 270 510 584 843 508 1065 596 745 165 392 Core 2 | 2 . . . . . . . . . . . . . . . . . . . . . . . . . . . . . . . Treads 9786 | 68 600 . . 384 550 154 13 237 93 10 . . 197 193 342 449 211 407 163 401 432 270 510 584 843 508 633 232 745 165 392 Legs 1141 | . . . . . . . . . . 330 159 40 . . . . . . . . . . . . . . 265 347 . . . Wheels 2356 | . 288 610 323 74 . 128 367 1 . 51 . 483 14 . . . . . . . . . . . . . . 17 . . . Hover 167 | . . . . . . . . . . . . . . . . . . . . . . . . . . . 167 . . . . Flight . | . . . . . . . . . . . . . . . . . . . . . . . . . . . . . . . . Fastest Speed 50 | 50 115 130 145 145 160 145 190 190 240 190 190 145 156 160 160 163 160 163 163 163 160 160 160 160 163 158 155 120 148 155 150 Average Speed 174 | 156 149 142 145 224 216 213 191 239 240 197 190 155 162 160 160 163 162 163 163 163 162 162 161 160 163 161 232 181 151 156 154 Slowest Speed 680 | 160 160 145 145 240 240 240 240 240 320 320 190 260 240 160 163 163 163 163 163 163 163 163 163 163 163 255 680 260 160 160 156 Overloaded Moves . | . . . . . . . . . . . . . . . . . . . . . . . . . . . . . . . . Propulsion Burnouts . | . . . . . . . . . . . . . . . . . . . . . . . . . . . . . . . . Robots Hopped . | . . . . . . . . . . . . . . . . . . . . . . . . . . . . . . . . Cave-ins Triggered . | . . . . . . . . . . . . . . . . . . . . . . . . . . . . . . . . Teleports 2 | . . . . . . . . . . . . . . . . . . . . . 1 . . . . . . 1 . . . Exploration Rate (%) 55 | 3 95 98 76 96 42 8 58 46 68 64 5 74 59 94 49 18 62 80 60 79 18 50 70 87 88 14 84 20 83 16 12 Regions Visited 31 Branch Regions 22 Pre-discovered Areas 10 | . 2 2 . . 1 . . . 1 . . . . . . . . . 3 . . . 1 . . . . . . . . Known Exits Taken 17 | . . . . . 1 1 . . . . . . . . . 1 1 1 1 1 1 1 1 1 1 1 1 1 1 1 . Unknown Exits Taken 14 | 1 1 1 1 1 . . 1 1 1 1 1 1 1 1 1 . . . . . . . . . . . . . . . . Scrap Searched 26 | . . 3 . 1 . . 2 3 . 3 . . . . . . 2 3 . 4 . 2 2 . 1 . . . . . . Spaces Dug 281 | . . . . 10 12 . . 8 . 8 1 19 19 . 1 7 2 9 . 1 68 . 65 . 1 12 12 3 11 2 10 Terrain Destroyed 1473 | 5 6 . . 10 45 . . 24 . 60 1 23 35 20 237 24 7 15 . 6 177 . 111 52 95 16 72 12 105 2 313 Melee 36 | . . . . . . . . . . . 1 . . . . 6 2 1 . . 5 . 4 . 1 12 4 . . . . Projectile 321 | . . . . . 17 . . . . . . 4 1 20 73 18 5 14 . 6 25 . 1 2 3 4 40 12 30 2 44 AOE 1098 | 5 6 . . 10 28 . . 24 . 60 . 19 34 . 163 . . . . . 146 . 106 50 90 . 28 . 68 . 261 Terrain Rammed . | . . . . . . . . . . . . . . . . . . . . . . . . . . . . . . . . Walls Destroyed . | . . . . . . . . . . . . . . . . . . . . . . . . . . . . . . . . Machines Disabled . | . . . . . . . . . . . . . . . . . . . . . . . . . . . . . . . . Actions | -11 -10 -10 -10 -9 -8 -7 -7 -7 -7 -6 -6 -6 -6 -6 -6 -5 -5 -5 -5 -4 -4 -4 -4 -4 -3 -3 -3 -2 -2 -2 -1 --------- Run | Scr Mat Min Exi Min Mat Fac Low Low Dat Pro Fac Ext Cet Arc Hub Fac Upp Upp Zhi Pro Fac Upp Upp War Pro Res Qua Res Tes Sec Acc Total 17728 | 91 1045 655 335 467 710 331 414 267 102 469 184 710 273 348 517 603 251 596 200 485 635 352 600 650 1251 627 1513 731 1134 225 957 Wait 1654 | . 31 35 7 1 27 23 7 4 . 13 2 64 2 90 54 69 9 151 7 20 22 29 26 3 369 47 172 . 122 12 236 Move 13421 | 69 887 609 322 457 549 281 379 237 92 390 158 522 210 192 341 448 210 406 162 400 431 269 509 583 842 507 1064 595 744 164 392 Hop . | . . . . . . . . . . . . . . . . . . . . . . . . . . . . . . . . Pick Up 220 | 4 23 6 . . 17 7 4 5 . 4 2 9 11 5 5 9 5 3 3 11 10 11 2 13 1 5 12 12 14 3 4 Fast Attach 209 | 7 3 1 . . 6 2 . . 4 8 3 6 8 8 7 3 2 . 10 5 10 1 1 6 . 8 29 27 20 13 11 Attach 147 | . 5 . . 1 4 3 6 2 . 3 1 7 1 1 6 5 3 . 3 9 13 5 2 2 2 3 21 5 9 . 25 Detach 75 | . 2 . . . 2 2 . . 1 2 1 2 3 . 2 . 2 . 2 2 2 1 . . . 4 15 5 10 4 11 Swap 476 | . 16 1 2 5 24 5 5 6 . 15 7 26 4 3 18 9 5 11 1 9 45 13 26 11 16 12 36 21 59 2 63 Drop 290 | . 14 3 . . 19 2 . 1 5 7 3 13 16 8 3 7 7 4 12 14 7 5 4 20 . 7 14 37 35 13 10 Fire 1017 | 11 57 . . 1 59 6 13 12 . 27 6 40 18 40 69 44 6 20 . 14 87 14 19 8 20 14 72 29 95 12 204 Melee 161 | . . . 4 . . . . . . . 1 20 . . 1 7 2 1 . 1 5 4 11 4 1 18 76 . 3 1 1 Ram 1 | . 1 . . . . . . . . . . . . . . . . . . . . . . . . . . . . . . Kick . | . . . . . . . . . . . . . . . . . . . . . . . . . . . . . . . . Crush 34 | . 6 . . 2 3 . . . . . . 1 . 1 11 2 . . . . 3 . . . . 2 2 . . 1 . Escape Stasis . | . . . . . . . . . . . . . . . . . . . . . . . . . . . . . . . . Rewire 23 | . . . . . . . . . . . . . . . . . . . . . . . . . . . . . 23 . . Trap . | . . . . . . . . . . . . . . . . . . . . . . . . . . . . . . . . Miscellaneous . | . . . . . . . . . . . . . . . . . . . . . . . . . . . . . . . . Route ------- -11/Scrapyard -10/Materials (discovered 4 exits: [*Mat x3] / [*Min]) -10/Mines (discovered 3 exits: [*Mat x2] / [*Exi]) -10/Exiles -9/Mines (discovered 2 exits: *Mat x2) -8/Materials (discovered 2 exits: *Fac x2) -7/Factory -7/Lower Caves -7/Lower Caves -7/Data Miner -6/Proximity Caves -6/Factory -6/Extension (discovered 3 exits: *Fac x2 / [*Cet]) -6/Cetus (discovered 2 exits: *Fac / [*Arc]) -6/Archives (discovered 3 exits: *Fac / *Hub x2) -6/Hub_04(d) (discovered 3 exits: *Fac x3) -5/Factory (discovered 2 exits: *Upp x2) -5/Upper Caves -5/Upper Caves (discovered 2 exits: *Fac / *Zhi) -5/Zhirov -4/Proximity Caves -4/Factory (discovered 3 exits: Res / *Upp x2) -4/Upper Caves -4/Upper Caves -4/Warlord -3/Proximity Caves -3/Research (discovered 4 exits: *Res / Arm / *Qua x2) -3/Quarantine -2/Research -2/Testing (discovered 2 exits: *Acc / *Sec) -2/Section 7 -1/Access History --------- Turn | Location | Event 25 | -11/Scrapyard | Discovered new exit (range 15) 157 | -11/Scrapyard | Entered Materials 317 | -10/Materials | Build established: Mutant 689 | -10/Materials | Discovered new exit (range 3) 983 | -10/Materials | Discovered new exit (range 9) 1250 | -10/Materials | Repaired Lgt. Treads? 1344 | -10/Materials | Discovered new exit (range 16) 1360 | -10/Materials | Repaired Lgt. Treads? 1404 | -10/Materials | Repaired Lgt. Treads 1562 | -10/Materials | Discovered new exit (range 15) 1754 | -10/Materials | Entered Mines 1778 | -10/Mines | A weapon hastily lodged in a ceiling crevice suddenly fell to the ground 1821 | -10/Mines | Deemed a non-threat by the Exiles lab entrance 1822 | -10/Mines | Discovered new exit (range 5) 1959 | -10/Mines | Learned location of Zion (-6) 1962 | -10/Mines | Discovered new exit (range 16) 2113 | -10/Mines | Received a Rocket Launcher from a helpful Derelict 2115 | -10/Mines | Discovered new exit (range 11) 2427 | -10/Mines | Learned location of Storage (-8) 2666 | -10/Mines | Entered Exiles 2666 | -10/Exiles | Accompanied by 2 allies 2696 | -10/Exiles | Led the pair of lost Derelicts to a safe place 2710 | -10/Exiles | Met 8R-AWN 2737 | -10/Exiles | Met EX-HEX 2778 | -10/Exiles | Met EX-BIN 2874 | -10/Exiles | Met EX-DEC 2928 | -10/Exiles | Visited The Gauntlet 3055 | -10/Exiles | Discovered new exit (range 14) 3149 | -10/Exiles | Entered Mines 3185 | -9/Mines | Discovered new exit (range 9) 3305 | -9/Mines | Discovered new exit (range 6) 3639 | -9/Mines | Learned Materials security intel 3672 | -9/Mines | Learned Materials non-interactive machine intel 4192 | -9/Mines | Entered Materials 4192 | -8/Materials | Evolved 4 slots: Propulsion x1, Utility x1, Weapon x2 4194 | -8/Materials | Loaded intel: 47 non-interactive machine locations 4253 | -8/Materials | Repaired Propulsion Shielding? 4524 | -8/Materials | Discovered new exit (range 16) 4578 | -8/Materials | Build established: Tank 4943 | -8/Materials | Destroyed 7 combat bots 5116 | -8/Materials | Discovered new exit (range 16) 5613 | -8/Materials | Identified exit to Factory 5687 | -8/Materials | Entered Factory 5687 | -7/Factory | Evolved 2 slots: Propulsion x1, Utility x1 5724 | -7/Factory | Fabricated Huge Storage Unit (x1) 5902 | -7/Factory | Build established: Gunner 6317 | -7/Factory | Discovered new exit (range 4) 6353 | -7/Factory | Identified exit to Lower Caves 6355 | -7/Factory | Entered Lower Caves 6437 | -7/Lower Caves | Spotted B-75 Beast 6622 | -7/Lower Caves | Destroyed B-75 Beast 6651 | -7/Lower Caves | Lost 5 parts (1p1u3w) 6802 | -7/Lower Caves | Encountered a Warlord checkpoint 6894 | -7/Lower Caves | Build established: Scavenger-Gunner 7069 | -7/Lower Caves | Discovered new exit (range 10) 7094 | -7/Lower Caves | Attracted the attention of an 0b10 checkpoint 7114 | -7/Lower Caves | Learned Factory security intel 7152 | -7/Lower Caves | Entered another Lower Caves area 7673 | -7/Lower Caves | Discovered new exit (range 14) 7704 | -7/Lower Caves | Attracted the attention of an 0b10 checkpoint 7745 | -7/Lower Caves | Build established: Gunner 7775 | -7/Lower Caves | Entered Data Miner 7777 | -7/Data Miner | Discovered new exit (range 6) 7823 | -7/Data Miner | Met Data Miner 7871 | -7/Data Miner | Learned location of Section 7 (-2) 7871 | -7/Data Miner | Acquired the access code to Warlord's prototype stash 7902 | -7/Data Miner | Received God Mode back door access code from Data Miner 8005 | -7/Data Miner | Entered Proximity Caves 8142 | -6/Proximity Caves | Escorted by Enhanced Grunt 8203 | -6/Proximity Caves | Found Prototype Device 8203 | -6/Proximity Caves | Identified Exp. Thermal Shield 8580 | -6/Proximity Caves | Learned Factory trap positions 8801 | -6/Proximity Caves | Discovered new exit (range 12) 8910 | -6/Proximity Caves | Entered Factory 8910 | -6/Factory | Evolved 2 slots: Propulsion x1, Utility x1 8911 | -6/Factory | Loaded intel: 115 trap records 9242 | -6/Factory | Discovered new exit (range 6) 9252 | -6/Factory | Entered Extension 9378 | -6/Extension | Build established: Scavenger-Mutant 9421 | -6/Extension | Energy Cycler disabled 9421 | -6/Extension | Rescued a captive Derelict 9421 | -6/Extension | Rescued a captive Derelict 9421 | -6/Extension | Rescued a captive Derelict 9421 | -6/Extension | Rescued a captive Derelict 9422 | -6/Extension | Rescued a captive Derelict 9422 | -6/Extension | Rescued a captive Derelict 9423 | -6/Extension | Rescued a captive Derelict 9424 | -6/Extension | Rescued a captive Derelict 9425 | -6/Extension | Rescued a captive Derelict 9427 | -6/Extension | Rescued a captive Derelict 9441 | -6/Extension | Lost 4 parts (1p1n2w) 9746 | -6/Extension | Spotted B-75 Beast 9768 | -6/Extension | Discovered new exit (range 19) 9768 | -6/Extension | Spotted B-75 Beast 9773 | -6/Extension | Destroyed B-75 Beast 9804 | -6/Extension | Allies destroyed B-75 Beast 9818 | -6/Extension | Extracted ID and sensor layout for unrecognized location from A7's data core 9822 | -6/Extension | Lost 4 parts (1n1u2w) 10319 | -6/Extension | Discovered new exit (range 10) 10321 | -6/Extension | Discovered new exit (range 6) 10344 | -6/Extension | Entered Cetus 10344 | -6/Cetus | Accompanied by 6 allies 10365 | -6/Cetus | Spotted Cetus Guard 10365 | -6/Cetus | Spotted Cetus Guard 10365 | -6/Cetus | Spotted Cetus Guard 10365 | -6/Cetus | Spotted Cetus Guard 10376 | -6/Cetus | Destroyed Cetus Guard 10379 | -6/Cetus | Destroyed Cetus Guard 10380 | -6/Cetus | Destroyed Cetus Guard 10391 | -6/Cetus | Allies destroyed Cetus Guard 10413 | -6/Cetus | System corruption reached 10% 10592 | -6/Cetus | Discovered new exit (range 20) 10624 | -6/Cetus | Spotted Cetus Guard 10624 | -6/Cetus | Spotted Cetus Guard 10625 | -6/Cetus | Spotted Cetus Guard 10625 | -6/Cetus | Spotted Cetus Guard 10635 | -6/Cetus | Destroyed Cetus Guard 10637 | -6/Cetus | Destroyed Cetus Guard 10637 | -6/Cetus | Destroyed Cetus Guard 10638 | -6/Cetus | Destroyed Cetus Guard 10642 | -6/Cetus | Discovered new exit (range 19) 10656 | -6/Cetus | Met Revision 17 10679 | -6/Cetus | System corruption reached 30% 10759 | -6/Cetus | Entered Archives 10911 | -6/Archives | Discovered new exit (range 13) 10923 | -6/Archives | Discovered new exit (range 18) 11027 | -6/Archives | Discovered new exit (range 15) 11179 | -6/Archives | Build established: Scavenger-Skirmisher 11311 | -6/Archives | Entered Hub_04(d) 11421 | -6/Hub_04(d) | Garrison activated, responded to threat 11480 | -6/Hub_04(d) | Destroyed 8 combat bots 11702 | -6/Hub_04(d) | Build established: Scavenger-Tank 11722 | -6/Hub_04(d) | Discovered new exit (range 7) 11925 | -6/Hub_04(d) | Discovered new exit (range 16) 11992 | -6/Hub_04(d) | Destroyed 9 combat bots 12186 | -6/Hub_04(d) | Discovered new exit (range 5) 12199 | -6/Hub_04(d) | Network Hub disabled 12201 | -6/Hub_04(d) | Entered Factory 12201 | -5/Factory | Evolved 2 slots: Utility x2 12202 | -5/Factory | Identified exit to Upper Caves 12501 | -5/Factory | First assault squad dispatched 12517 | -5/Factory | Incoming assault squad redirected 12566 | -5/Factory | Repaired Centrium Heavy Treads 12597 | -5/Factory | Garrison activated, responded to threat 12708 | -5/Factory | Repaired Broken Centrium Heavy Treads? 13194 | -5/Factory | Entered Upper Caves 13228 | -5/Upper Caves | Attracted the attention of an 0b10 checkpoint 13581 | -5/Upper Caves | Discovered new exit (range 7) 13586 | -5/Upper Caves | Spotted B-75 Beast 13589 | -5/Upper Caves | Identified exit to Upper Caves 13591 | -5/Upper Caves | Entered another Upper Caves area 13611 | -5/Upper Caves | Discovered new exit (range 28) 13650 | -5/Upper Caves | Learned location of 1 exit from Factory 13859 | -5/Upper Caves | Learned location of 1 exit from Factory 13921 | -5/Upper Caves | Encountered a Warlord checkpoint 14224 | -5/Upper Caves | Build established: Scavenger-Assassin 14357 | -5/Upper Caves | Discovered new exit (range 17) 14469 | -5/Upper Caves | Identified exit to Zhirov 14471 | -5/Upper Caves | Entered Zhirov 14473 | -5/Zhirov | Discovered new exit (range 3) 14503 | -5/Zhirov | Met Zhirov 14531 | -5/Zhirov | Zhirov requested help retrieving the SGEMP Prototype 14560 | -5/Zhirov | Found Alien Artifact 14560 | -5/Zhirov | Identified Integrated Dissipator 14560 | -5/Zhirov | Installed Integrated Dissipator, increased core heat dissipation (+20) 14583 | -5/Zhirov | Found Alien Artifact 14604 | -5/Zhirov | Build established: Scavenger-Mutant 14698 | -5/Zhirov | Learned location of Quarantine (-3) 14770 | -5/Zhirov | Identified exit to Proximity Caves 14772 | -5/Zhirov | Entered Proximity Caves 14830 | -4/Proximity Caves | Found Imp. Powered Armor 14901 | -4/Proximity Caves | Learned Research terminal intel 15037 | -4/Proximity Caves | Attracted the attention of an 0b10 checkpoint 15513 | -4/Proximity Caves | Discovered new exit (range 12) 15539 | -4/Proximity Caves | Identified exit to Factory 15541 | -4/Proximity Caves | Entered Factory 15541 | -4/Factory | Evolved 2 slots: Power x1, Utility x1 15542 | -4/Factory | Identified exit to Research 15542 | -4/Factory | Identified exit to Upper Caves 15589 | -4/Factory | Discovered exit to Upper Caves (range 17) 15949 | -4/Factory | Build established: Scavenger-Assassin 16023 | -4/Factory | Identified Transdimensional Reconstructor 16192 | -4/Factory | Destroyed 11 combat bots 16317 | -4/Factory | Lost 7 parts (1n1u5w) 16468 | -4/Factory | Destroyed 8 combat bots 16574 | -4/Factory | First assault squad dispatched 16601 | -4/Factory | Cargo convoy interrupted 16615 | -4/Factory | Incoming assault squad redirected 16623 | -4/Factory | Warped through subspace 16652 | -4/Factory | Entered Upper Caves 16653 | -4/Upper Caves | Lost 4 parts (1n1u2w) 16806 | -4/Upper Caves | System corruption reached 10% 16923 | -4/Upper Caves | Attracted the attention of an 0b10 checkpoint 17157 | -4/Upper Caves | Discovered new exit (range 13) 17172 | -4/Upper Caves | Identified exit to Upper Caves 17210 | -4/Upper Caves | Entered another Upper Caves area 17258 | -4/Upper Caves | Build established: Scavenger-Skirmisher 17705 | -4/Upper Caves | Build established: Scavenger-Assassin 17826 | -4/Upper Caves | Discovered new exit (range 22) 17967 | -4/Upper Caves | Learned Research trap positions 18181 | -4/Upper Caves | Attracted the attention of an 0b10 checkpoint 18181 | -4/Upper Caves | Identified exit to Warlord 18183 | -4/Upper Caves | Entered Warlord 18238 | -4/Warlord | System corruption cleaned by Quarantine Array 18369 | -4/Warlord | Received a Watcher feed algorithm from an ecstatic Tinkerer 18555 | -4/Warlord | Found Prototype Special Weapon 18558 | -4/Warlord | Found Prototype Special Weapon 18562 | -4/Warlord | Found Prototype Special Weapon 18564 | -4/Warlord | Found Prototype Special Weapon 18616 | -4/Warlord | Met Warlord 18630 | -4/Warlord | Opened Warlord's prototype stash 18635 | -4/Warlord | Found Prototype Reactor 18641 | -4/Warlord | Warlord's base attacked by MAIN.C 18643 | -4/Warlord | Found Prototype Processor 18643 | -4/Warlord | Identified Exp. Core Analyzer 18665 | -4/Warlord | Found Prototype Device 18665 | -4/Warlord | Identified Exp. Phase Shifter 18729 | -4/Warlord | Learned Quarantine emergency access door positions 18732 | -4/Warlord | Learned Factory terminal intel 18855 | -4/Warlord | Identified RU-N14's Throwing Claymores v3 (x2) 18933 | -4/Warlord | Build established: Scavenger-Mutant 18991 | -4/Warlord | Warlord forces counterattacked 19110 | -4/Warlord | Spotted Executioner 19114 | -4/Warlord | Spotted Striker 19152 | -4/Warlord | Spotted Striker 19152 | -4/Warlord | Discovered new exit (range 19) 19191 | -4/Warlord | Destroyed 7 combat bots 19198 | -4/Warlord | Identified exit to Proximity Caves 19200 | -4/Warlord | Entered Proximity Caves 19317 | -3/Proximity Caves | Spotted B-86 Titan 19628 | -3/Proximity Caves | Destroyed B-86 Titan 19855 | -3/Proximity Caves | Attracted the attention of an 0b10 outpost 20198 | -3/Proximity Caves | Build established: Scavenger-Skirmisher 20406 | -3/Proximity Caves | Received a Behemoth hack from an annoying Tinkerer 21028 | -3/Proximity Caves | Entered Research 21028 | -3/Research | Evolved 2 slots: Propulsion x1, Utility x1 21029 | -3/Research | Loaded intel: 84 trap records 21030 | -3/Research | Loaded intel: 24 terminal locations 21250 | -3/Research | Identified Vortex Chain Reactor 21289 | -3/Research | Revision forces began assault on 0b10 21291 | -3/Research | Met up with Revision 17++ 21349 | -3/Research | Identified exit to Armory 21349 | -3/Research | Identified exit to Quarantine 21378 | -3/Research | Spotted B-86 Titan 21632 | -3/Research | Build established: Scavenger-Assassin 21676 | -3/Research | Repaired Helical Railgun? 21676 | -3/Research | Found Prototype Device 21676 | -3/Research | Identified Exp. Focal Shield 21789 | -3/Research | Research terminal network offline 21792 | -3/Research | Repaired Centrium Light Armor Plating? 21889 | -3/Research | Found Prototype Launcher 21889 | -3/Research | Identified Tactical Quantum Warhead 21914 | -3/Research | Discovered new exit (range 20) 21925 | -3/Research | Found Prototype Device 21925 | -3/Research | Identified Adv. Kinecellerator 21948 | -3/Research | Identified exit to Research 22029 | -3/Research | Entered Quarantine 22106 | -3/Quarantine | Found Transdimensional Reconstructor 22182 | -3/Quarantine | Cryocooling Duct disabled 22197 | -3/Quarantine | Ambient heat levels rising (+20) 22197 | -3/Quarantine | Non-combat units ordered to evacuate 22356 | -3/Quarantine | Repaired Adv. Cooling System 23212 | -3/Quarantine | Spotted Alpha 7 23345 | -3/Quarantine | Destroyed Alpha 7 23361 | -3/Quarantine | Found Prototype Device 23361 | -3/Quarantine | Identified Exp. ECM Suite 23374 | -3/Quarantine | Lost 4 parts (1p2n1w) 23803 | -3/Quarantine | Found Alien Slashing Weapon 23803 | -3/Quarantine | Identified Sigix Broadsword 23902 | -3/Quarantine | Found Antimissile System 23924 | -3/Quarantine | Found Alien Impact Weapon 23973 | -3/Quarantine | Garrison activated, responded to threat 24095 | -3/Quarantine | System corruption reached 10% 24151 | -3/Quarantine | Lost 8 parts (4n3u1w) 24183 | -3/Quarantine | Found Alien Reactor 24254 | -3/Quarantine | Found Unknown Launcher 24254 | -3/Quarantine | Identified Fusion Bomb Launcher 24440 | -3/Quarantine | System corruption reached 30% 24482 | -3/Quarantine | Lost 3 parts (2n1w) 24545 | -3/Quarantine | Build established: Scavenger-Mutant 25110 | -3/Quarantine | Build established: Scavenger-Skirmisher 25170 | -3/Quarantine | Discovered exit to Research (range 7) 25208 | -3/Quarantine | Found Alien Artifact 25208 | -3/Quarantine | Identified Subatomic Replicator 25231 | -3/Quarantine | Entered Research 25231 | -2/Research | Warlord forces began assault on 0b10 25231 | -2/Research | Evolved 2 slots: Propulsion x2 25232 | -2/Research | Identified exit to Testing 25325 | -2/Research | Found Quantum Capacitor 25341 | -2/Research | Research machine network offline 25360 | -2/Research | Met up with Warlord 25540 | -2/Research | Borebot progress halted 25578 | -2/Research | Borebot progress halted 26098 | -2/Research | Spotted Striker 26098 | -2/Research | Destroyed Striker 26101 | -2/Research | Spotted Striker 26103 | -2/Research | Spotted Striker 26106 | -2/Research | Spotted Striker 26130 | -2/Research | P-80 Master assimilated allied LZ-F15(M) 26137 | -2/Research | Warped through subspace 26155 | -2/Research | Found Prototype Launcher 26155 | -2/Research | Identified Tesla Bomb Launcher 26219 | -2/Research | Spotted Striker 26219 | -2/Research | Spotted Striker 26249 | -2/Research | Destroyed Striker 26250 | -2/Research | Borebot progress halted 26253 | -2/Research | Destroyed Striker 26386 | -2/Research | Found Prototype Slashing Weapon 26386 | -2/Research | Identified Particle Cleaver 26397 | -2/Research | Found Prototype Processor 26397 | -2/Research | Identified Spectral Analyzer 26510 | -2/Research | Entered Testing 26547 | -2/Testing | Garrison activated, responded to threat 26715 | -2/Testing | Found Prototype Device 26715 | -2/Testing | Identified Thermal Barrier 26779 | -2/Testing | Spotted Striker 26790 | -2/Testing | Destroyed Striker 26803 | -2/Testing | Spotted Alpha 7 26811 | -2/Testing | Identified Core Stripper 26816 | -2/Testing | Destroyed Alpha 7 26827 | -2/Testing | Found Prototype Ballistic Gun 26827 | -2/Testing | Identified Multirail 26841 | -2/Testing | Spotted Striker 26850 | -2/Testing | Destroyed Striker 26932 | -2/Testing | Found Exp. Targeting Computer 27121 | -2/Testing | Stole the SGEMP Prototype 27259 | -2/Testing | Spotted PY-6GZJDYQ285 27290 | -2/Testing | Rewired PY-6GZJDYQ285 27675 | -2/Testing | Destroyed 7 combat bots 27808 | -2/Testing | First assault squad dispatched 27879 | -2/Testing | Found Prototype Protection 27879 | -2/Testing | Identified SHELL Armor 27883 | -2/Testing | Destroyed 8 combat bots 27932 | -2/Testing | Discovered new exit (range 6) 27946 | -2/Testing | Identified exit to Access 27990 | -2/Testing | Found Prototype Energy Gun 27990 | -2/Testing | Identified Warp Gun 28066 | -2/Testing | Spotted Fortress 28081 | -2/Testing | Destroyed Fortress 28081 | -2/Testing | Scanned by Researcher 28093 | -2/Testing | Found Vortex Chain Reactor 28097 | -2/Testing | Found Vortex Chain Reactor 28102 | -2/Testing | Found Prototype Device 28105 | -2/Testing | Found Prototype Device 28105 | -2/Testing | Identified Exp. EM Disruption Field 28107 | -2/Testing | Identified Exp. Force Field 28249 | -2/Testing | Discovered new exit (range 6) 28255 | -2/Testing | Identified exit to Section 7 28257 | -2/Testing | Entered Section 7 28371 | -2/Section 7 | Found Alien Artifact 28371 | -2/Section 7 | Identified Core Reset Matrix 28371 | -2/Section 7 | Used Core Reset Matrix 28375 | -2/Section 7 | Sensed 16 artifacts in vicinity 28432 | -2/Section 7 | Found Microwarp Drive 28473 | -2/Section 7 | Found Spacefold Activator 28506 | -2/Section 7 | Discovered exit to Access (range 7) 28507 | -2/Section 7 | First assault squad dispatched 28517 | -2/Section 7 | Spotted S7 Guard 28527 | -2/Section 7 | Destroyed S7 Guard 28532 | -2/Section 7 | Incoming assault squad redirected 28547 | -2/Section 7 | Found Integrated Thermoelectric Network 28547 | -2/Section 7 | Installed Integrated Thermoelectric Network, gained heat-energy exchange potential 28590 | -2/Section 7 | Entered Access 28590 | -1/Access | Evolved 2 slots: Utility x2 28670 | -1/Access | Found Unknown Device 28670 | -1/Access | Identified Quantum Capacitor 29140 | -1/Access | First assault squad dispatched 29407 | -1/Access | Found Exp. Focal Shield 29575 | -1/Access | Destroyed 8 combat bots 29648 | -1/Access | Incoming assault squad redirected 29922 | -1/Access | High security lockdown imminent 29985 | -1/Access | Lost 3 parts (2n1u) 30002 | -1/Access | High security lockdown engaged 30002 | -1/Access | Destroyed 12 combat bots 30144 | -1/Access | System corruption reached 10% 30177 | -1/Access | Spotted Executioner 30177 | -1/Access | Spotted Executioner 30182 | -1/Access | Spotted Executioner 30182 | -1/Access | Spotted Executioner 30199 | -1/Access | Core integrity fell below 50% 30204 | -1/Access | Emitted hypermatrix ping 30207 | -1/Access | Core integrity fell below 20% 30209 | -1/Access | Assembled emerged from beneath the floor 30212 | -1/Access | Destroyed by Executioner with Helical Railgun Last Messages --------------- 30211_ Acquired 13 matter. 30211_ Acquired 36 matter. 30211_ Acquired 3 matter. 30211_ Acquired 30 matter. 30211_ Acquired 2 matter. 30211_ Acquired 4 matter. 30211_ Acquired 35 matter. 30211_ Acquired 15 matter. 30211_ Acquired 72 matter. 30211_ Slug penetrates as-98029. 30211_ Slug penetrates as-66815. 30211_ as-66815 destroyed. 30211_ Slug penetrates as-45186. 30211_ as-45186 destroyed. 30211_ Slug penetrates Fabricator. 30212_ Acquired 10 matter. 30212_ Penetrated by Slug. 30212_ Com. HERF Cannon destroyed. 30212_ Penetrated by Slug. 30212_ Graphene Brace destroyed. Map ----- +----------------------------------------------------+ | ??????????????????????????????????????????######## | | ??????????????????????????????????????????# [ # | | ??????????????????????????????????????????# # | | ??????????????????????????????????????????# # | | ??????????????????????????????????????????# # | | ??????????????????????????????????????????# # | | ???????????????????????????????????????????? ? | | ??????????????????????????????????????########+### | | ??????????#???????????????????????????# # | | ??????????# ??????????????????????????# # | | ????????###/####????????###???????????+ | | ????????? ??????? ???????????# # | | ??????????? ?????? ???????????## ^ # | | ???????????? ?????? ????????????# ### | | ????????????? %" ????? ??????####### = [# | | ?????????????? "%" ???? ?? / =[ # | | ??????????????? " ???? ####### * [ ! # | | ???????????????? ??? ????????????######### | | ????????????????? ####+###################??# ! | | ?????# ??????????? %/%[ % + ???# | | ?????? !????????? %####p t = #????# | | ????????## ??????## = g % """ #????# | | ????????# ## #????# E """"#????##? | | ???? #### ##/ ## %% g F""#?###### | | ?? % !=* E% =%=%% % [[ ""#?# | | ?? % / i @a!% ! [[ """#?# | | ?? u /a*=% "" #?# | | ???????## # # ## !=!= a #?# " | | ????????# ! ?????## !*% #?# "" | | ????????###????????? [ E % k #?# """ | | ???????????????????# # h #?# " | | ???????????????????# * ######;h######?? | | ???????????????????# =* #?# # #????????? | | ???????????????????# =%E # ## # ?????####" | | ???????????????????# % ### ###!###?# | | ????????????????#### = ! ### # % ####### | | ????????????????# % |%[%! * * | | ????????????????# % ![![= = % | | ????????????????# % %* *[%%%![% = | | ????????????????# "" %%!## # ![ ####### | | ????????????????# ""Y% [ ## %##%%[### | | ????????????????# = = # %############ | | ??????????????### ! =#* %#!= # | | ??? * %!=#* #| +%% # | | ??? ########%###### ==#[ # | | ??? ?????# #%##???#*!!# # | | ??? ############+??????? #%#????# ==# [ # | | ??????????????????????????## #????#= [# # | | ???????????????????????????# #????#!=%# # | | ???????????????????????????# #????# # # | +----------------------------------------------------+ Best States ------------- Heat Dissipation 103 Energy Generation 55 Energy Capacity 775 Matter Stores 300 Matter Capacity 300 Sight Range 24 Robot Scan Range 16 Terrain Scan Range 24 Terrain Scan Density 210 Corruption Block 20 Armor Coverage 2250 Resistance: KI 30 Resistance: TH 50 Resistance: EM 75 Core Shielding 30 Propulsion Shielding 33 Weapon Cycling 20 Evasion (%) 50 Targeting Accuracy 12 Melee Accuracy 8 Target Analysis 12 Core Analysis 8 Recoil Reduction 8 Matter Filtering 50 Energy Filtering 50 Kinecelleration 50 Salvage Targeting 4 Offensive Hacking 12 Defensive Hacking 12 Item Schematics ----------------- None Robot Schematics ------------------ None Fabricated ------------ Huge Storage Unit | x1 | -7/Factory Alien Tech Used ----------------- Integrated Dissipator Transdimensional Reconstructor Sigix Broadsword Subatomic Replicator Core Stripper Core Reset Matrix Microwarp Drive Integrated Thermoelectric Network Spacefold Activator Achievements -------------- None Challenges ------------ None Game ------ Seed MasterStormScrap Manual? 0 Play Time 07:16:33 Cumulative 214.6 hours Start 2022.02.28 @ 17:37:52 End 2022.03.03 @ 09:58:52 Sessions 26 Manual Loads 0 Difficulty Rogue Special Mode None Game No. 104 Rogue 104 Adventurer 0 Explorer 0 Win Type - Total 3 Types 2/0/0/1/0/0/0/0/0 Lore% 81 Gallery% 86 Achievement% 65 Wizard Run 0 Options --------- ASCII 0 Keyboard 1 Movement Vi Keybinds 0 Fullscreen 2 Font 18/Cog Map View 76x50 Tactical HUD 1 Map Filters NONE Filters NONE Steam 0 RUN: 2070a3fb-06b3-4ce5-a3fa-ba75ee9c8c3d